{"text_format":"3","workbook":"xlsx","n_sheets":2,"sheets":["Inizio","Pianificazione budget regali"],"not_rendered":{"defined_names":1},"read":"whole","date_system":"1900"}

{"sheet":"Inizio","index":0,"n_rows":7,"n_cols":2,"rows_kept":7}
[null,"INFORMAZIONI SU QUESTO MODELLO"]
[null,"Tenere traccia delle spese con Pianificazione budget regali."]
[null,"Immettere il budget e le spese effettivo sostenute per vari articoli nelle tabelle."]
[null,"Budget regali, Importo totale effettivo speso e Differenza vengono calcolati automaticamente."]
[null,"Nota: "]
[null,"Altre istruzioni sono state fornite nella colonna A nel foglio di lavoro PIANIFICAZIONE BUDGET REGALI. Questo testo è stato nascosto intenzionalmente. Per rimuovere il testo, selezionare la colonna A, quindi scegliere ELIMINA. Per visualizzare il testo, selezionare la colonna A, quindi modificare il colore del carattere."]
[null,"Per ulteriori informazioni sulle tabelle, premere MAIUSC, quindi F10 in una tabella, selezionare l'opzione TABELLA, quindi selezionare TESTO ALTERNATIVO."]

{"sheet":"Pianificazione budget regali","index":1,"n_rows":32,"n_cols":12,"rows_kept":32,"merged":[[1,1,5,4],[2,8,2,9],[3,8,3,9],[4,8,4,9],[6,1,6,4],[6,8,6,11],[15,1,15,4],[15,8,15,11],[25,1,25,4],[25,8,25,11]]}
["Immettere il budget e le spese effettivo sostenute per ogni categoria nelle rispettive tabelle in questo foglio di lavoro. Istruzioni utili per l'uso di questo foglio di lavoro si trovano nelle celle di questa colonna. Freccia verso il basso per iniziare. "]
["Il titolo di questo foglio di lavoro si trova nella cella a destra.","Pianificazione \nbudget regali"]
["Il budget regali viene calcolato automaticamente nella cella K3.",{"$nulls":7},"BUDGET REGALI",null,{"$f":"SUM(Regali[Budget],Confezioni[Budget],(Viaggi[Budget],(Menu[Budget],(Svago[Budget],Varie[Budget]))))","v":{"v":750,"d":"€ 750.00"}}]
["La spesa effettive viene calcolata automaticamente nella cella K4.",{"$nulls":7},"SPESE EFFETTIVE",null,{"$f":"SUM((Regali[Effettivo],(Confezioni[Effettivo],(Viaggi[Effettivo],(Menu[Effettivo],(Svago[Effettivo],(Varie[Effettivo])))))))","v":{"v":820,"d":"€ 820.00"}}]
["La differenza viene calcolata automaticamente nella cella K5. L'istruzione successiva si trova nella cella A7.",{"$nulls":7},"DIFFERENZA (superiore/inferiore al budget)",null,{"$f":"SUM(K3-K4)","v":{"v":-70,"d":"-€ 70.00"}}]
[]
["L’etichetta Regali si trova nella cella a destra e l'etichetta Menu festività nella cella I7.","Regali",{"$nulls":6},"Menu festività"]
["Immettere le spese in Regali nella tabella partendo dalla cella a destra e in Menu nella tabella Regali partendo dalla cella I8. L'istruzione successiva si trova nella cella A16.","Articolo","Budget","Effettivo","Differenza",{"$nulls":3},"Articolo","Budget","Effettivo","Differenza"]
[null,"Famiglia",{"v":500,"d":"€ 500.00"},{"v":495,"d":"€ 495.00"},{"$f":"Regali[[#This Row],[Budget]]-Regali[[#This Row],[Effettivo]]","v":{"v":5,"d":"€ 5.00"}},{"$nulls":3},"Generi alimentari",null,null,{"$f":"Menu[[#This Row],[Budget]]-Menu[[#This Row],[Effettivo]]","v":{"v":0,"d":"€ 0.00"}}]
[null,"Amici",{"v":250,"d":"€ 250.00"},{"v":325,"d":"€ 325.00"},{"$f":"Regali[[#This Row],[Budget]]-Regali[[#This Row],[Effettivo]]","v":{"v":-75,"d":"-€ 75.00"}},{"$nulls":3},"Libagioni",null,null,{"$f":"Menu[[#This Row],[Budget]]-Menu[[#This Row],[Effettivo]]","v":{"v":0,"d":"€ 0.00"}}]
[null,"Colleghi",null,null,{"$f":"Regali[[#This Row],[Budget]]-Regali[[#This Row],[Effettivo]]","v":{"v":0,"d":"€ 0.00"}},{"$nulls":3},"Decorazioni",null,null,{"$f":"Menu[[#This Row],[Budget]]-Menu[[#This Row],[Effettivo]]","v":{"v":0,"d":"€ 0.00"}}]
[null,"Insegnanti, bambinaie, baby sitter e così via",null,null,{"$f":"Regali[[#This Row],[Budget]]-Regali[[#This Row],[Effettivo]]","v":{"v":0,"d":"€ 0.00"}},{"$nulls":3},"Altro (spostarsi con il tasto di tabulazione all'ultima colonna di questa riga per aggiungere una riga)",null,null,{"$f":"Menu[[#This Row],[Budget]]-Menu[[#This Row],[Effettivo]]","v":{"v":0,"d":"€ 0.00"}}]
[null,"Beneficenza",null,null,{"$f":"Regali[[#This Row],[Budget]]-Regali[[#This Row],[Effettivo]]","v":{"v":0,"d":"€ 0.00"}},{"$nulls":3},"Totale",{"$f":"SUBTOTAL(109,Menu[Budget])","v":{"v":0,"d":"€ 0.00"}},{"$f":"SUBTOTAL(109,Menu[Effettivo])","v":{"v":0,"d":"€ 0.00"}},{"$f":"SUBTOTAL(109,Menu[Differenza])","v":{"v":0,"d":"€ 0.00"}}]
[null,"Altro (spostarsi con il tasto di tabulazione all'ultima colonna di questa riga per aggiungere una riga)",null,null,{"$f":"Regali[[#This Row],[Budget]]-Regali[[#This Row],[Effettivo]]","v":{"v":0,"d":"€ 0.00"}}]
[null,"Totale",{"$f":"SUBTOTAL(109,Regali[Budget])","v":{"v":750,"d":"€ 750.00"}},{"$f":"SUBTOTAL(109,Regali[Effettivo])","v":{"v":820,"d":"€ 820.00"}},{"$f":"SUBTOTAL(109,Regali[Differenza])","v":{"v":-70,"d":"-€ 70.00"}}]
["L’etichetta Confezioni si trova nella cella a destra e l'etichetta Svago nella cella I16.","Confezioni",{"$nulls":6},"Svago"]
["Immettere le spese in Confezioni nella tabella partendo dalla cella a destra e in Svago nella tabella partendo dalla cella I17. L'istruzione successiva si trova nella cella A26.","Articolo","Budget","Effettivo","Differenza",{"$nulls":3},"Articolo","Budget","Effettivo","Differenza"]
[null,"Carta da regalo",null,null,{"$f":"Confezioni[[#This Row],[Budget]]-Confezioni[[#This Row],[Effettivo]]","v":{"v":0,"d":"€ 0.00"}},{"$nulls":3},"Aiuti per le feste (barista, addetto al catering, addetti alle pulizie, e così via)",null,null,{"$f":"Svago[[#This Row],[Budget]]-Svago[[#This Row],[Effettivo]]","v":{"v":0,"d":"€ 0.00"}}]
[null,"Contrassegni",null,null,{"$f":"Confezioni[[#This Row],[Budget]]-Confezioni[[#This Row],[Effettivo]]","v":{"v":0,"d":"€ 0.00"}},{"$nulls":3},"Decorazioni",null,null,{"$f":"Svago[[#This Row],[Budget]]-Svago[[#This Row],[Effettivo]]","v":{"v":0,"d":"€ 0.00"}}]
[null,"Materiali (nastri, strisce e così via)",null,null,{"$f":"Confezioni[[#This Row],[Budget]]-Confezioni[[#This Row],[Effettivo]]","v":{"v":0,"d":"€ 0.00"}},{"$nulls":3},"Cibo e bevande",null,null,{"$f":"Svago[[#This Row],[Budget]]-Svago[[#This Row],[Effettivo]]","v":{"v":0,"d":"€ 0.00"}}]
[null,"Scatole",null,null,{"$f":"Confezioni[[#This Row],[Budget]]-Confezioni[[#This Row],[Effettivo]]","v":{"v":0,"d":"€ 0.00"}},{"$nulls":3},"Abbigliamento",null,null,{"$f":"Svago[[#This Row],[Budget]]-Svago[[#This Row],[Effettivo]]","v":{"v":0,"d":"€ 0.00"}}]
[null,"Affrancatura",null,null,{"$f":"Confezioni[[#This Row],[Budget]]-Confezioni[[#This Row],[Effettivo]]","v":{"v":0,"d":"€ 0.00"}},{"$nulls":3},"Biglietti",null,null,{"$f":"Svago[[#This Row],[Budget]]-Svago[[#This Row],[Effettivo]]","v":{"v":0,"d":"€ 0.00"}}]
[null,"Altro (spostarsi con il tasto di tabulazione all'ultima colonna di questa riga per aggiungere una riga)",null,null,{"$f":"Confezioni[[#This Row],[Budget]]-Confezioni[[#This Row],[Effettivo]]","v":{"v":0,"d":"€ 0.00"}},{"$nulls":3},"Cene fuori",null,null,{"$f":"Svago[[#This Row],[Budget]]-Svago[[#This Row],[Effettivo]]","v":{"v":0,"d":"€ 0.00"}}]
[null,"Totale",{"$f":"SUBTOTAL(109,Confezioni[Budget])","v":{"v":0,"d":"€ 0.00"}},{"$f":"SUBTOTAL(109,Confezioni[Effettivo])","v":{"v":0,"d":"€ 0.00"}},{"$f":"SUBTOTAL(109,Confezioni[Differenza])","v":{"v":0,"d":"€ 0.00"}},{"$nulls":3},"Altro (spostarsi con il tasto di tabulazione all'ultima colonna di questa riga per aggiungere una riga)",null,null,{"$f":"Svago[[#This Row],[Budget]]-Svago[[#This Row],[Effettivo]]","v":{"v":0,"d":"€ 0.00"}}]
[{"$nulls":8},"Totale",{"$f":"SUBTOTAL(109,Svago[Budget])","v":{"v":0,"d":"€ 0.00"}},{"$f":"SUBTOTAL(109,Svago[Effettivo])","v":{"v":0,"d":"€ 0.00"}},{"$f":"SUBTOTAL(109,Svago[Differenza])","v":{"v":0,"d":"€ 0.00"}}]
["L’etichetta Viaggi si trova nella cella a destra e l'etichetta Varie nella cella I26.","Viaggi",{"$nulls":6},"Varie"]
["Immettere le spese in Viaggi nella tabella partendo dalla cella a destra e in Spese varie nella tabella partendo dalla cella I27.","Articolo","Budget","Effettivo","Differenza",{"$nulls":3},"Articolo","Budget","Effettivo","Differenza"]
[null,"Biglietti aerei",null,null,{"$f":"Viaggi[[#This Row],[Budget]]-Viaggi[[#This Row],[Effettivo]]","v":{"v":0,"d":"€ 0.00"}},{"$nulls":3},"Foto delle vacanze",null,null,{"$f":"Varie[[#This Row],[Budget]]-Varie[[#This Row],[Effettivo]]","v":{"v":0,"d":"€ 0.00"}}]
[null,"Alloggio",null,null,{"$f":"Viaggi[[#This Row],[Budget]]-Viaggi[[#This Row],[Effettivo]]","v":{"v":0,"d":"€ 0.00"}},{"$nulls":3},"Benzina ",null,null,{"$f":"Varie[[#This Row],[Budget]]-Varie[[#This Row],[Effettivo]]","v":{"v":0,"d":"€ 0.00"}}]
[null,"Trasporti",null,null,{"$f":"Viaggi[[#This Row],[Budget]]-Viaggi[[#This Row],[Effettivo]]","v":{"v":0,"d":"€ 0.00"}},{"$nulls":3},"Altro (spostarsi con il tasto di tabulazione all'ultima colonna di questa riga per aggiungere una riga)",null,null,{"$f":"Varie[[#This Row],[Budget]]-Varie[[#This Row],[Effettivo]]","v":{"v":0,"d":"€ 0.00"}}]
[null,"Altro (spostarsi con il tasto di tabulazione all'ultima colonna di questa riga per aggiungere una riga)",null,null,{"$f":"Viaggi[[#This Row],[Budget]]-Viaggi[[#This Row],[Effettivo]]","v":{"v":0,"d":"€ 0.00"}},{"$nulls":3},"Totale",{"$f":"SUBTOTAL(109,Varie[Budget])","v":{"v":0,"d":"€ 0.00"}},{"$f":"SUBTOTAL(109,Varie[Effettivo])","v":{"v":0,"d":"€ 0.00"}},{"$f":"SUBTOTAL(109,Varie[Differenza])","v":{"v":0,"d":"€ 0.00"}}]
[null,"Totale",{"$f":"SUBTOTAL(109,Viaggi[Budget])","v":{"v":0,"d":"€ 0.00"}},{"$f":"SUBTOTAL(109,Viaggi[Effettivo])","v":{"v":0,"d":"€ 0.00"}},{"$f":"SUBTOTAL(109,Viaggi[Differenza])","v":{"v":0,"d":"€ 0.00"}}]